[Event "Early-Titled-Tuesday-Blitz-April-02-2024"]
[Site "Chess.com"]
[Date "2024.04.02"]
[Round "3"]
[White "Yaacovn"]
[Black "Dixit_Nikhil"]
[Result "1/2-1/2"]
[WhiteElo "2848"]
[BlackElo "2643"]
[TimeControl "180+1"]
[EndTime "8:27:20 PDT"]
[Termination "Game drawn by repetition"]

1. d4 {[%clk 0:03:00]} 1... Nf6 {[%clk 0:02:59.8]} 2. Nf3 {[%clk 0:02:56.8]}
2... g6 {[%clk 0:03:00.1]} 3. e3 {[%clk 0:02:56.7]} 3... Bg7 {[%clk 0:03:00.6]}
4. Be2 {[%clk 0:02:57.2]} 4... O-O {[%clk 0:03:01.3]} 5. O-O {[%clk 0:02:57.7]}
5... d6 {[%clk 0:03:01.4]} 6. b3 {[%clk 0:02:58.1]} 6... b6 {[%clk 0:03:01.8]}
7. Bb2 {[%clk 0:02:58.4]} 7... Bb7 {[%clk 0:03:02.5]} 8. c4 {[%clk 0:02:58.8]}
8... Ne4 {[%clk 0:03:00.4]} 9. Qc2 {[%clk 0:02:58.9]} 9... Nd7 {[%clk 0:03:00]}
10. Rd1 {[%clk 0:02:59.3]} 10... c5 {[%clk 0:02:52.5]} 11. d5 {[%clk 0:02:52.4]}
11... Nef6 {[%clk 0:02:51.1]} 12. Nc3 {[%clk 0:02:51.3]} 12... a6 {[%clk
0:02:51.3]} 13. e4 {[%clk 0:02:50.4]} 13... Nh5 {[%clk 0:02:46.2]} 14. Bf1
{[%clk 0:02:44.6]} 14... Ne5 {[%clk 0:02:37.1]} 15. Nxe5 {[%clk 0:02:43.1]}
15... Bxe5 {[%clk 0:02:38]} 16. Ne2 {[%clk 0:02:43.3]} 16... Bxb2 {[%clk
0:02:35.4]} 17. Qxb2 {[%clk 0:02:43.2]} 17... e5 {[%clk 0:02:28.4]} 18. a4
{[%clk 0:02:38.3]} 18... a5 {[%clk 0:02:25.9]} 19. Qd2 {[%clk 0:02:24.9]} 19...
Bc8 {[%clk 0:02:20.1]} 20. Qh6 {[%clk 0:02:10.7]} 20... Qf6 {[%clk 0:02:11.1]}
21. Nc3 {[%clk 0:02:08.9]} 21... Qf4 {[%clk 0:02:01.8]} 22. Qxf4 {[%clk
0:02:07.3]} 22... Nxf4 {[%clk 0:02:02.7]} 23. g3 {[%clk 0:02:03.2]} 23... Nh5
{[%clk 0:02:00.4]} 24. Be2 {[%clk 0:02:01.9]} 24... Ng7 {[%clk 0:02:00.8]} 25.
f4 {[%clk 0:02:01.5]} 25... f6 {[%clk 0:01:59.7]} 26. Nb5 {[%clk 0:02:00]} 26...
Ne8 {[%clk 0:01:57.6]} 27. fxe5 {[%clk 0:01:54.5]} 27... fxe5 {[%clk 0:01:58.5]}
28. Rf1 {[%clk 0:01:54.6]} 28... Bd7 {[%clk 0:01:57.7]} 29. Rxf8+ {[%clk
0:01:54.1]} 29... Kxf8 {[%clk 0:01:58.6]} 30. Nc3 {[%clk 0:01:54.2]} 30... Ke7
{[%clk 0:01:56.4]} 31. Kg2 {[%clk 0:01:53.8]} 31... Nf6 {[%clk 0:01:56.6]} 32.
Rf1 {[%clk 0:01:53.2]} 32... Rf8 {[%clk 0:01:56.3]} 33. h3 {[%clk 0:01:52.7]}
33... Ne8 {[%clk 0:01:55.8]} 34. Re1 {[%clk 0:01:44.3]} 34... Nf6 {[%clk
0:01:51.7]} 35. Rh1 {[%clk 0:01:42.1]} 35... h5 {[%clk 0:01:48.4]} 36. h4 {[%clk
0:01:39.5]} 36... Ng4 {[%clk 0:01:45.5]} 37. Nd1 {[%clk 0:01:32.1]} 37... Nh6
{[%clk 0:01:43.2]} 38. Rf1 {[%clk 0:01:29]} 38... Bg4 {[%clk 0:01:41]} 39. Rxf8
{[%clk 0:01:25.8]} 39... Kxf8 {[%clk 0:01:41.9]} 40. Kf2 {[%clk 0:01:24.7]}
40... Bxe2 {[%clk 0:01:41.5]} 41. Kxe2 {[%clk 0:01:25.6]} 41... Ng4 {[%clk
0:01:40.5]} 42. Nc3 {[%clk 0:01:25.3]} 42... Ke7 {[%clk 0:01:40.7]} 43. Nb5
{[%clk 0:01:25]} 43... Nf6 {[%clk 0:01:36.3]} 44. Kf3 {[%clk 0:01:24.4]} 44...
Ne8 {[%clk 0:01:29.3]} 45. Na7 {[%clk 0:01:19.6]} 45... Kd7 {[%clk 0:01:29.8]}
46. Nb5 {[%clk 0:01:16.7]} 46... Nc7 {[%clk 0:01:26.4]} 47. Nc3 {[%clk
0:01:16.3]} 47... Ne8 {[%clk 0:01:26.6]} 48. Nd1 {[%clk 0:01:15.6]} 48... Nf6
{[%clk 0:01:25.1]} 49. Ne3 {[%clk 0:01:16]} 49... Ke7 {[%clk 0:01:25.6]} 50. g4
{[%clk 0:01:12.2]} 50... hxg4+ {[%clk 0:01:16.6]} 51. Nxg4 {[%clk 0:01:13.1]}
51... Nxg4 {[%clk 0:01:12.8]} 52. Kxg4 {[%clk 0:01:13]} 52... Kf6 {[%clk
0:01:12]} 53. h5 {[%clk 0:01:10.3]} 53... Kg7 {[%clk 0:01:07.9]} 54. Kg5 {[%clk
0:00:57.4]} 54... gxh5 {[%clk 0:01:06.8]} 55. Kxh5 {[%clk 0:00:58.3]} 55... Kh7
{[%clk 0:01:07.4]} 56. Kg5 {[%clk 0:00:58.3]} 56... Kg7 {[%clk 0:01:07.9]} 57.
Kf5 {[%clk 0:00:58.7]} 57... Kf7 {[%clk 0:01:08.4]} 58. Kg5 {[%clk 0:00:54.1]}
58... Kg7 {[%clk 0:01:08.6]} 59. Kh4 {[%clk 0:00:51.3]} 59... Kh6 {[%clk
0:01:04.1]} 60. Kg4 {[%clk 0:00:51.4]} 60... Kg6 {[%clk 0:01:04.6]} 61. Kh4
{[%clk 0:00:51.7]} 61... Kh6 {[%clk 0:01:05.1]} 62. Kg4 {[%clk 0:00:51.7]} 62...
Kg6 {[%clk 0:01:05.7]} 63. Kh4 {[%clk 0:00:51.7]} 63... Kh6 {[%clk 0:01:05.9]}
1/2-1/2

[Event "Early-Titled-Tuesday-Blitz-April-02-2024"]
[Site "Chess.com"]
[Date "2024.04.02"]
[Round "3"]
[White "Road2GM3000"]
[Black "tactic"]
[Result "1-0"]
[WhiteElo "2437"]
[BlackElo "2603"]
[TimeControl "180+1"]
[EndTime "8:27:21 PDT"]
[Termination "Road2GM3000 won on time"]

1. d4 {[%clk 0:02:48.1]} 1... Nf6 {[%clk 0:03:00.8]} 2. c4 {[%clk 0:02:46.5]}
2... e6 {[%clk 0:03:00.6]} 3. Nc3 {[%clk 0:02:46.8]} 3... d5 {[%clk 0:03:00.6]}
4. cxd5 {[%clk 0:02:46.2]} 4... exd5 {[%clk 0:03:01.5]} 5. Bg5 {[%clk
0:02:45.9]} 5... Nbd7 {[%clk 0:02:59.9]} 6. e3 {[%clk 0:02:46.5]} 6... c6 {[%clk
0:02:59.4]} 7. Nf3 {[%clk 0:02:47.1]} 7... Bd6 {[%clk 0:02:59.7]} 8. Bd3 {[%clk
0:02:47.4]} 8... O-O {[%clk 0:02:56.5]} 9. Qc2 {[%clk 0:02:46.6]} 9... h6 {[%clk
0:02:56.5]} 10. Bh4 {[%clk 0:02:47]} 10... Re8 {[%clk 0:02:55.2]} 11. h3 {[%clk
0:02:45]} 11... b5 {[%clk 0:02:53.2]} 12. O-O-O {[%clk 0:02:44.8]} 12... a5
{[%clk 0:02:48.2]} 13. g4 {[%clk 0:02:44.1]} 13... Be7 {[%clk 0:02:41.3]} 14. g5
{[%clk 0:02:43.3]} 14... hxg5 {[%clk 0:02:30.9]} 15. Nxg5 {[%clk 0:02:40.4]}
15... Ne4 {[%clk 0:02:02]} 16. Bxe4 {[%clk 0:01:43.1]} 16... Bxg5 {[%clk
0:01:47.9]} 17. Bxg5 {[%clk 0:01:34.2]} 17... Qxg5 {[%clk 0:01:48.8]} 18. Rdg1
{[%clk 0:01:24.5]} 18... Qh6 {[%clk 0:01:45.3]} 19. Bd3 {[%clk 0:01:14.6]} 19...
Rb8 {[%clk 0:01:32.5]} 20. Rg3 {[%clk 0:01:06.2]} 20... c5 {[%clk 0:01:23.9]}
21. Rhg1 {[%clk 0:01:01.7]} 21... Nf6 {[%clk 0:00:38.5]} 22. Rxg7+ {[%clk
0:00:44.5]} 22... Kh8 {[%clk 0:00:38.7]} 23. Nxd5 {[%clk 0:00:36.4]} 23... Nxd5
{[%clk 0:00:38.6]} 24. Rh7+ {[%clk 0:00:36.3]} 24... Qxh7 {[%clk 0:00:39.3]} 25.
Bxh7 {[%clk 0:00:36]} 25... Nb4 {[%clk 0:00:39.4]} 26. Qe2 {[%clk 0:00:27.7]}
26... f5 {[%clk 0:00:02.9]} 27. Qh5 {[%clk 0:00:24]} 27... Re7 {[%clk
0:00:02.3]} 28. Bxf5+ {[%clk 0:00:23.2]} 1-0

[Event "Early-Titled-Tuesday-Blitz-April-02-2024"]
[Site "Chess.com"]
[Date "2024.04.02"]
[Round "3"]
[White "AnaKuchava"]
[Black "schachlana"]
[Result "0-1"]
[WhiteElo "2163"]
[BlackElo "2399"]
[TimeControl "180+1"]
[EndTime "8:27:21 PDT"]
[Termination "schachlana won on time"]

1. d4 {[%clk 0:03:00.9]} 1... Nf6 {[%clk 0:02:58.9]} 2. Nf3 {[%clk 0:02:59.3]}
2... g6 {[%clk 0:02:58.4]} 3. c4 {[%clk 0:02:59.6]} 3... d6 {[%clk 0:02:58.3]}
4. Nc3 {[%clk 0:02:59.8]} 4... Bg7 {[%clk 0:02:59]} 5. e4 {[%clk 0:02:59.7]}
5... O-O {[%clk 0:02:59.8]} 6. Be2 {[%clk 0:02:58.5]} 6... c5 {[%clk 0:02:59.6]}
7. O-O {[%clk 0:02:57.9]} 7... cxd4 {[%clk 0:02:56]} 8. Nxd4 {[%clk 0:02:58.8]}
8... Nc6 {[%clk 0:02:56.6]} 9. Be3 {[%clk 0:02:57.7]} 9... Bd7 {[%clk
0:02:55.2]} 10. Qd2 {[%clk 0:02:57.2]} 10... Rc8 {[%clk 0:02:52.1]} 11. Rac1
{[%clk 0:02:49.9]} 11... a6 {[%clk 0:02:46.4]} 12. f3 {[%clk 0:02:48.8]} 12...
Re8 {[%clk 0:02:45.1]} 13. Nd5 {[%clk 0:02:25.3]} 13... e6 {[%clk 0:01:52.7]}
14. Nc3 {[%clk 0:02:10.6]} 14... Qc7 {[%clk 0:01:34.8]} 15. Rfd1 {[%clk
0:02:01.8]} 15... Red8 {[%clk 0:01:34.5]} 16. Bg5 {[%clk 0:01:50.8]} 16... h6
{[%clk 0:01:30.4]} 17. Nxc6 {[%clk 0:01:49.2]} 17... Bxc6 {[%clk 0:01:08.3]} 18.
Bxh6 {[%clk 0:01:49]} 18... Bxh6 {[%clk 0:01:03.2]} 19. Qxh6 {[%clk 0:01:49.9]}
19... Qb6+ {[%clk 0:01:03.4]} 20. Kh1 {[%clk 0:01:41.5]} 20... Qxb2 {[%clk
0:01:03.1]} 21. Rd3 {[%clk 0:01:09.4]} 21... b5 {[%clk 0:00:39.8]} 22. Rb1
{[%clk 0:00:52]} 22... Qc2 {[%clk 0:00:35.6]} 23. f4 {[%clk 0:00:42.6]} 23...
Nxe4 {[%clk 0:00:27.8]} 24. Nxe4 {[%clk 0:00:02.4]} 24... Qxb1+ {[%clk
0:00:26.3]} 25. Bd1 {[%clk 0:00:02.5]} 25... Bxe4 {[%clk 0:00:21.7]} 0-1

[Event "Early-Titled-Tuesday-Blitz-April-02-2024"]
[Site "Chess.com"]
[Date "2024.04.02"]
[Round "3"]
[White "kereswasbest"]
[Black "2346PL"]
[Result "0-1"]
[WhiteElo "2262"]
[BlackElo "2538"]
[TimeControl "180+1"]
[EndTime "8:27:26 PDT"]
[Termination "2346PL won by checkmate"]

1. e4 {[%clk 0:02:59.1]} 1... c5 {[%clk 0:02:59.9]} 2. Nf3 {[%clk 0:02:58.9]}
2... Nf6 {[%clk 0:03:00.6]} 3. d4 {[%clk 0:02:58.9]} 3... Nxe4 {[%clk
0:03:00.2]} 4. Bd3 {[%clk 0:02:56.1]} 4... d5 {[%clk 0:03:00]} 5. O-O {[%clk
0:02:53]} 5... Nc6 {[%clk 0:02:57.4]} 6. c4 {[%clk 0:02:53.4]} 6... cxd4 {[%clk
0:02:51.2]} 7. cxd5 {[%clk 0:02:49]} 7... Qxd5 {[%clk 0:02:51.3]} 8. Bxe4 {[%clk
0:02:48.5]} 8... Qxe4 {[%clk 0:02:51.3]} 9. Re1 {[%clk 0:02:49.2]} 9... Qd5
{[%clk 0:02:40.4]} 10. Nc3 {[%clk 0:02:49]} 10... Qd8 {[%clk 0:02:40.4]} 11. Nb5
{[%clk 0:02:47.8]} 11... Bg4 {[%clk 0:02:33.5]} 12. Nbxd4 {[%clk 0:02:15]} 12...
Nxd4 {[%clk 0:02:27]} 13. Qxd4 {[%clk 0:01:19.3]} 13... Bxf3 {[%clk 0:02:25.8]}
14. Qxd8+ {[%clk 0:01:19]} 14... Rxd8 {[%clk 0:02:25.6]} 15. gxf3 {[%clk
0:01:19.9]} 15... e6 {[%clk 0:02:24.6]} 16. Be3 {[%clk 0:01:19.8]} 16... b6
{[%clk 0:02:19.8]} 17. Rac1 {[%clk 0:01:17.6]} 17... Bd6 {[%clk 0:02:19.7]} 18.
Bg5 {[%clk 0:01:11.9]} 18... f6 {[%clk 0:02:15.5]} 19. Bh4 {[%clk 0:00:38.5]}
19... Ke7 {[%clk 0:02:12.9]} 20. Bg3 {[%clk 0:00:36.8]} 20... Bxg3 {[%clk
0:02:06.6]} 21. hxg3 {[%clk 0:00:33.5]} 21... Rc8 {[%clk 0:02:06.8]} 22. Kf1
{[%clk 0:00:29.8]} 22... h5 {[%clk 0:01:59.4]} 23. f4 {[%clk 0:00:25.8]} 23...
Rhd8 {[%clk 0:01:43.9]} 24. f5 {[%clk 0:00:17.2]} 24... Rxc1 {[%clk 0:01:39.5]}
25. Rxc1 {[%clk 0:00:16.9]} 25... exf5 {[%clk 0:01:40]} 26. Ke2 {[%clk
0:00:15.9]} 26... g5 {[%clk 0:01:28.1]} 27. Kf3 {[%clk 0:00:16.3]} 27... Rd7
{[%clk 0:01:22.6]} 28. Ke3 {[%clk 0:00:15.5]} 28... Kf7 {[%clk 0:01:22.1]} 29.
Kf3 {[%clk 0:00:15.3]} 29... Kg6 {[%clk 0:01:22.5]} 30. Ke3 {[%clk 0:00:15.9]}
30... Re7+ {[%clk 0:01:17]} 31. Kf3 {[%clk 0:00:16.1]} 31... g4+ {[%clk
0:01:17.4]} 32. Kg2 {[%clk 0:00:15.5]} 32... f4 {[%clk 0:01:16.5]} 33. gxf4
{[%clk 0:00:15.2]} 33... Re2 {[%clk 0:01:09.6]} 34. Rc7 {[%clk 0:00:13.6]} 34...
a6 {[%clk 0:01:05.9]} 35. b4 {[%clk 0:00:10.1]} 35... Rxa2 {[%clk 0:01:05.6]}
36. Rc6 {[%clk 0:00:10.7]} 36... b5 {[%clk 0:01:03.3]} 37. Kg3 {[%clk 0:00:09]}
37... Ra1 {[%clk 0:01:00.3]} 38. Kg2 {[%clk 0:00:08.8]} 38... Kf5 {[%clk
0:00:57.2]} 39. Rc5+ {[%clk 0:00:08.8]} 39... Kxf4 {[%clk 0:00:57.6]} 40. Rxh5
{[%clk 0:00:09.5]} 40... Ra4 {[%clk 0:00:54.4]} 41. Rh6 {[%clk 0:00:05.1]} 41...
Kg5 {[%clk 0:00:54.4]} 42. Rh8 {[%clk 0:00:04.2]} 42... Rxb4 {[%clk 0:00:54.7]}
43. Rg8+ {[%clk 0:00:04.9]} 43... Kf5 {[%clk 0:00:54.9]} 44. Ra8 {[%clk
0:00:05.2]} 44... Ra4 {[%clk 0:00:55]} 45. Kg3 {[%clk 0:00:05.4]} 45... Ra3+
{[%clk 0:00:54.9]} 46. Kh4 {[%clk 0:00:06.1]} 46... Rh3# {[%clk 0:00:54.3]} 0-1

[Event "Early-Titled-Tuesday-Blitz-April-02-2024"]
[Site "Chess.com"]
[Date "2024.04.02"]
[Round "3"]
[White "chessdjw"]
[Black "Hikaru"]
[Result "0-1"]
[WhiteElo "2791"]
[BlackElo "3266"]
[TimeControl "180+1"]
[EndTime "8:27:27 PDT"]
[Termination "Hikaru won by resignation"]

1. e4 {[%clk 0:03:00.9]} 1... a6 {[%clk 0:02:55.8]} 2. d4 {[%clk 0:03:00.6]}
2... e6 {[%clk 0:02:53.5]} 3. Nf3 {[%clk 0:02:57.4]} 3... d5 {[%clk 0:02:51.9]}
4. Nc3 {[%clk 0:02:50.9]} 4... Nf6 {[%clk 0:02:49.3]} 5. e5 {[%clk 0:02:45.9]}
5... Nfd7 {[%clk 0:02:49.1]} 6. Ne2 {[%clk 0:02:43.4]} 6... c5 {[%clk 0:02:47]}
7. c3 {[%clk 0:02:43.6]} 7... Nc6 {[%clk 0:02:43]} 8. g3 {[%clk 0:02:43.1]} 8...
a5 {[%clk 0:02:42.3]} 9. h4 {[%clk 0:02:42.1]} 9... a4 {[%clk 0:02:42.4]} 10.
Bh3 {[%clk 0:02:29.3]} 10... a3 {[%clk 0:02:40.9]} 11. b3 {[%clk 0:02:28.7]}
11... cxd4 {[%clk 0:02:41.2]} 12. cxd4 {[%clk 0:02:28.6]} 12... b6 {[%clk
0:02:37]} 13. Kf1 {[%clk 0:02:19.5]} 13... Ba6 {[%clk 0:02:36.8]} 14. Kg2 {[%clk
0:02:20.1]} 14... Bb4 {[%clk 0:02:30.2]} 15. Be3 {[%clk 0:02:12.8]} 15... Rc8
{[%clk 0:02:29.1]} 16. Rc1 {[%clk 0:02:11.2]} 16... O-O {[%clk 0:02:28.9]} 17.
Nf4 {[%clk 0:02:05.1]} 17... Re8 {[%clk 0:02:05.1]} 18. Ng5 {[%clk 0:02:04.7]}
18... Nf8 {[%clk 0:02:05.3]} 19. Qh5 {[%clk 0:02:01.6]} 19... Re7 {[%clk
0:02:05.1]} 20. Rc2 {[%clk 0:01:29]} 20... Ba5 {[%clk 0:01:38.8]} 21. Nfxe6
{[%clk 0:00:38.2]} 21... fxe6 {[%clk 0:01:29.3]} 22. Bxe6+ {[%clk 0:00:38.1]}
22... Rxe6 {[%clk 0:01:25.5]} 23. Qf7+ {[%clk 0:00:37.9]} 23... Kh8 {[%clk
0:01:26.2]} 24. Nxe6 {[%clk 0:00:31.1]} 24... Nxe6 {[%clk 0:01:26.8]} 25. Qxe6
{[%clk 0:00:31.3]} 25... Nxd4 {[%clk 0:01:27.5]} 26. Rxc8 {[%clk 0:00:09.2]}
26... Bxc8 {[%clk 0:01:28.4]} 27. Qd6 {[%clk 0:00:07.5]} 27... Qxd6 {[%clk
0:01:26.8]} 28. exd6 {[%clk 0:00:08.4]} 28... Ne6 {[%clk 0:01:16.4]} 29. Rc1
{[%clk 0:00:08.7]} 29... Bd7 {[%clk 0:01:16.4]} 30. Bg5 {[%clk 0:00:05.7]} 30...
h6 {[%clk 0:01:14.4]} 31. Be7 {[%clk 0:00:06.2]} 31... d4 {[%clk 0:01:14.6]} 32.
Kf3 {[%clk 0:00:05.9]} 32... d3 {[%clk 0:01:14.5]} 33. Ke3 {[%clk 0:00:05.6]}
33... d2 {[%clk 0:01:15]} 34. Rd1 {[%clk 0:00:05.9]} 34... Kg8 {[%clk
0:01:10.7]} 35. h5 {[%clk 0:00:03.6]} 35... Nc5 {[%clk 0:01:08.6]} 36. f3 {[%clk
0:00:03.8]} 36... Bc3 {[%clk 0:01:06.3]} 37. g4 {[%clk 0:00:04]} 37... b5 {[%clk
0:01:02]} 38. Bh4 {[%clk 0:00:04.3]} 38... b4 {[%clk 0:01:01.4]} 39. Bg3 {[%clk
0:00:04.9]} 39... Nxb3 {[%clk 0:01:01]} 40. axb3 {[%clk 0:00:04.8]} 40... a2
{[%clk 0:01:01]} 41. Bf4 {[%clk 0:00:05.4]} 41... Kf7 {[%clk 0:00:58.5]} 42. Kf2
{[%clk 0:00:05.1]} 42... Be6 {[%clk 0:00:57.5]} 43. Ke2 {[%clk 0:00:04.8]} 43...
Bxb3 {[%clk 0:00:57.3]} 44. Rh1 {[%clk 0:00:04.3]} 44... d1=Q+ {[%clk
0:00:57.4]} 45. Rxd1 {[%clk 0:00:03.8]} 45... Bxd1+ {[%clk 0:00:58.3]} 46. Kf2
{[%clk 0:00:04]} 46... a1=Q {[%clk 0:00:59.2]} 47. d7 {[%clk 0:00:04]} 47...
Qa7+ {[%clk 0:00:59.1]} 48. Be3 {[%clk 0:00:03.7]} 48... Qxd7 {[%clk 0:01:00]}
0-1

[Event "Early-Titled-Tuesday-Blitz-April-02-2024"]
[Site "Chess.com"]
[Date "2024.04.02"]
[Round "3"]
[White "Ginger_GM"]
[Black "kleber2007"]
[Result "0-1"]
[WhiteElo "2628"]
[BlackElo "2476"]
[TimeControl "180+1"]
[EndTime "8:27:27 PDT"]
[Termination "kleber2007 won on time"]

1. e4 {[%clk 0:03:00.9]} 1... c6 {[%clk 0:02:58.4]} 2. Bc4 {[%clk 0:02:59.7]}
2... d5 {[%clk 0:02:58.6]} 3. Bb3 {[%clk 0:02:59.3]} 3... dxe4 {[%clk
0:02:58.7]} 4. Qh5 {[%clk 0:02:58.9]} 4... g6 {[%clk 0:02:58.5]} 5. Qh4 {[%clk
0:02:58.8]} 5... Nf6 {[%clk 0:02:58.6]} 6. Nc3 {[%clk 0:02:58.4]} 6... Bf5
{[%clk 0:02:52.5]} 7. f3 {[%clk 0:02:58.2]} 7... exf3 {[%clk 0:02:50.6]} 8. Nxf3
{[%clk 0:02:58.1]} 8... e6 {[%clk 0:02:50.1]} 9. d4 {[%clk 0:02:57.9]} 9... Be7
{[%clk 0:02:49.8]} 10. O-O {[%clk 0:02:45.5]} 10... Nbd7 {[%clk 0:02:41]} 11. h3
{[%clk 0:02:07.4]} 11... h5 {[%clk 0:02:29.5]} 12. Bg5 {[%clk 0:01:54.6]} 12...
Nh7 {[%clk 0:02:13.7]} 13. Bxe7 {[%clk 0:01:49.7]} 13... Qxe7 {[%clk 0:02:14.6]}
14. Qf4 {[%clk 0:01:49]} 14... g5 {[%clk 0:01:49]} 15. Qg3 {[%clk 0:01:37]}
15... h4 {[%clk 0:01:39.2]} 16. Qc7 {[%clk 0:01:36.8]} 16... Ndf6 {[%clk
0:01:35.7]} 17. Qe5 {[%clk 0:01:26.8]} 17... O-O-O {[%clk 0:01:14.6]} 18. Rae1
{[%clk 0:01:26.7]} 18... Qc7 {[%clk 0:01:10.6]} 19. Qe3 {[%clk 0:00:59.9]} 19...
g4 {[%clk 0:01:08.6]} 20. Ne5 {[%clk 0:00:58.9]} 20... gxh3 {[%clk 0:01:08]} 21.
gxh3 {[%clk 0:00:58.9]} 21... Rhg8+ {[%clk 0:01:05.9]} 22. Kh1 {[%clk 0:00:58]}
22... Rg3 {[%clk 0:01:05.6]} 23. Rf3 {[%clk 0:00:57.9]} 23... Rdg8 {[%clk
0:01:05]} 24. Ne2 {[%clk 0:00:39]} 24... Rxf3 {[%clk 0:00:56.2]} 25. Qxf3 {[%clk
0:00:39.9]} 25... Ng5 {[%clk 0:00:53]} 26. Qe3 {[%clk 0:00:40.1]} 26... Nxh3
{[%clk 0:00:41.3]} 27. Rf1 {[%clk 0:00:37.1]} 27... Ng4 {[%clk 0:00:38.6]} 28.
Qxh3 {[%clk 0:00:13.7]} 28... Nf2+ {[%clk 0:00:37.6]} 29. Rxf2 {[%clk
0:00:14.3]} 29... Bxh3 {[%clk 0:00:37.6]} 30. Rxf7 {[%clk 0:00:15]} 30... Qd8
{[%clk 0:00:32]} 31. Nc4 {[%clk 0:00:04.4]} 31... Qg5 {[%clk 0:00:30.2]} 32.
Nd6+ {[%clk 0:00:03.6]} 32... Kb8 {[%clk 0:00:29.8]} 0-1

[Event "Early-Titled-Tuesday-Blitz-April-02-2024"]
[Site "Chess.com"]
[Date "2024.04.02"]
[Round "3"]
[White "DanylaBagrov"]
[Black "Roosters19"]
[Result "1-0"]
[WhiteElo "2520"]
[BlackElo "2286"]
[TimeControl "180+1"]
[EndTime "8:27:28 PDT"]
[Termination "DanylaBagrov won by resignation"]

1. d4 {[%clk 0:02:59.5]} 1... Nf6 {[%clk 0:02:59.5]} 2. Bf4 {[%clk 0:02:58.5]}
2... c5 {[%clk 0:02:58.9]} 3. e3 {[%clk 0:02:53.4]} 3... cxd4 {[%clk 0:02:56.7]}
4. exd4 {[%clk 0:02:52.8]} 4... d6 {[%clk 0:02:56.2]} 5. c3 {[%clk 0:02:50.6]}
5... Bf5 {[%clk 0:02:51.4]} 6. h3 {[%clk 0:02:45.2]} 6... Nbd7 {[%clk
0:02:49.6]} 7. Nd2 {[%clk 0:02:42.5]} 7... h6 {[%clk 0:02:47.8]} 8. Ngf3 {[%clk
0:02:41.7]} 8... Rc8 {[%clk 0:02:31.7]} 9. Be2 {[%clk 0:02:37.1]} 9... g5 {[%clk
0:02:22.2]} 10. Bh2 {[%clk 0:02:34.1]} 10... Bg7 {[%clk 0:02:22.7]} 11. O-O
{[%clk 0:02:28.4]} 11... O-O {[%clk 0:02:21]} 12. Nc4 {[%clk 0:02:21]} 12... Bg6
{[%clk 0:02:17.5]} 13. Ne3 {[%clk 0:02:12.4]} 13... Nb6 {[%clk 0:02:12.5]} 14.
Qb3 {[%clk 0:02:01.4]} 14... Ne4 {[%clk 0:02:02.7]} 15. a4 {[%clk 0:01:53.4]}
15... Rb8 {[%clk 0:01:22.9]} 16. a5 {[%clk 0:01:49.8]} 16... Nd7 {[%clk
0:01:21.5]} 17. Rfe1 {[%clk 0:01:43.6]} 17... Ndf6 {[%clk 0:01:11.3]} 18. Ra4
{[%clk 0:01:31.2]} 18... Qd7 {[%clk 0:01:02.5]} 19. Rb4 {[%clk 0:01:27.1]} 19...
h5 {[%clk 0:00:59.1]} 20. a6 {[%clk 0:01:19.6]} 20... b6 {[%clk 0:00:57.9]} 21.
d5 {[%clk 0:01:16.3]} 21... g4 {[%clk 0:00:52.6]} 22. hxg4 {[%clk 0:01:14.7]}
22... hxg4 {[%clk 0:00:53.5]} 23. Nd4 {[%clk 0:01:07.2]} 23... g3 {[%clk
0:00:47]} 24. Bxg3 {[%clk 0:00:57.8]} 24... Nxg3 {[%clk 0:00:46.6]} 25. fxg3
{[%clk 0:00:58]} 25... Ne4 {[%clk 0:00:46.9]} 26. Nc6 {[%clk 0:00:52.4]} 26...
Ra8 {[%clk 0:00:42.1]} 27. g4 {[%clk 0:00:49.6]} 27... Bh6 {[%clk 0:00:23.9]}
28. Nf5 {[%clk 0:00:41.1]} 28... Bxf5 {[%clk 0:00:23.6]} 29. gxf5 {[%clk
0:00:40.1]} 29... Be3+ {[%clk 0:00:23.1]} 30. Kh2 {[%clk 0:00:35.5]} 30... Qxf5
{[%clk 0:00:20.5]} 31. Nxe7+ {[%clk 0:00:30.6]} 31... Kh7 {[%clk 0:00:20.6]} 32.
Nxf5 {[%clk 0:00:28.5]} 32... Bf4+ {[%clk 0:00:20.2]} 33. Kg1 {[%clk 0:00:23.5]}
33... Rh8 {[%clk 0:00:18.1]} 1-0